[Event "Late-Titled-Tuesday-Blitz-May-07-2024"]
[Site "Chess.com"]
[Date "2024.05.07"]
[Round "6"]
[White "robertoalejandro10"]
[Black "brouetoscope"]
[Result "1/2-1/2"]
[WhiteElo "2506"]
[BlackElo "2332"]
[TimeControl "180+1"]
[EndTime "15:08:46 PDT"]
[Termination "Game drawn by stalemate"]

1. Nf3 {[%clk 0:03:00.9]} 1... Nf6 {[%clk 0:02:58.8]} 2. b3 {[%clk 0:03:00.2]}
2... c5 {[%clk 0:02:57.7]} 3. Bb2 {[%clk 0:03:00.5]} 3... Nc6 {[%clk 0:02:55.8]}
4. c4 {[%clk 0:03:00.7]} 4... e6 {[%clk 0:02:53.9]} 5. g3 {[%clk 0:03:00.2]}
5... d5 {[%clk 0:02:52.4]} 6. Bg2 {[%clk 0:03:00.3]} 6... d4 {[%clk 0:02:52.2]}
7. O-O {[%clk 0:03:00.3]} 7... Be7 {[%clk 0:02:51.5]} 8. d3 {[%clk 0:03:01.2]}
8... O-O {[%clk 0:02:51.1]} 9. Na3 {[%clk 0:03:00.5]} 9... e5 {[%clk 0:02:36.4]}
10. Nc2 {[%clk 0:02:58.9]} 10... a5 {[%clk 0:02:36.1]} 11. a3 {[%clk 0:02:58.5]}
11... Bd6 {[%clk 0:02:33.3]} 12. Bc1 {[%clk 0:02:50]} 12... h6 {[%clk
0:02:31.4]} 13. Bd2 {[%clk 0:02:49.4]} 13... Re8 {[%clk 0:02:27.4]} 14. b4
{[%clk 0:02:49.3]} 14... axb4 {[%clk 0:02:25.8]} 15. axb4 {[%clk 0:02:49.1]}
15... Rxa1 {[%clk 0:02:25.5]} 16. Qxa1 {[%clk 0:02:50]} 16... Qc7 {[%clk
0:02:22.5]} 17. bxc5 {[%clk 0:02:45.2]} 17... Bxc5 {[%clk 0:02:22.1]} 18. Rb1
{[%clk 0:02:43.6]} 18... b6 {[%clk 0:02:12.9]} 19. Nb4 {[%clk 0:02:34.2]} 19...
Nxb4 {[%clk 0:02:07.3]} 20. Bxb4 {[%clk 0:02:34.4]} 20... Nd7 {[%clk 0:02:03.2]}
21. Qa4 {[%clk 0:02:31.1]} 21... Re7 {[%clk 0:01:55.8]} 22. Nd2 {[%clk
0:02:24.9]} 22... Kh7 {[%clk 0:01:47.4]} 23. Ne4 {[%clk 0:02:22.9]} 23... f5
{[%clk 0:01:27.1]} 24. Nxc5 {[%clk 0:01:48.4]} 24... bxc5 {[%clk 0:01:25.3]} 25.
Ba5 {[%clk 0:01:42.7]} 25... Qd6 {[%clk 0:01:25.3]} 26. Qc6 {[%clk 0:01:32.9]}
26... Qxc6 {[%clk 0:01:17.8]} 27. Bxc6 {[%clk 0:01:33.8]} 27... Nf6 {[%clk
0:01:11.6]} 28. Bd8 {[%clk 0:00:56.4]} 28... Re6 {[%clk 0:01:07.5]} 29. Bxf6
{[%clk 0:00:33.5]} 29... gxf6 {[%clk 0:01:04.8]} 30. Bd5 {[%clk 0:00:32.8]}
30... Re7 {[%clk 0:01:02.3]} 31. Rb6 {[%clk 0:00:30.7]} 31... Kg6 {[%clk
0:01:01.4]} 32. Rc6 {[%clk 0:00:29.6]} 32... Bb7 {[%clk 0:00:52.8]} 33. Rxc5
{[%clk 0:00:29.7]} 33... Bxd5 {[%clk 0:00:53]} 34. Rxd5 {[%clk 0:00:30.6]} 34...
Ra7 {[%clk 0:00:53.2]} 35. Kg2 {[%clk 0:00:29.7]} 35... Ra2 {[%clk 0:00:47.2]}
36. Kf3 {[%clk 0:00:29.7]} 36... Rc2 {[%clk 0:00:46.7]} 37. Rd8 {[%clk
0:00:27.9]} 37... Rc3 {[%clk 0:00:43.1]} 38. Kg2 {[%clk 0:00:19.8]} 38... Rc2
{[%clk 0:00:43.4]} 39. Kf3 {[%clk 0:00:16.4]} 39... Rc3 {[%clk 0:00:43.8]} 40.
h4 {[%clk 0:00:13.1]} 40... e4+ {[%clk 0:00:43.2]} 41. Kf4 {[%clk 0:00:13.6]}
41... exd3 {[%clk 0:00:43.5]} 42. exd3 {[%clk 0:00:14.3]} 42... Rxd3 {[%clk
0:00:42.6]} 43. f3 {[%clk 0:00:12.6]} 43... Rd1 {[%clk 0:00:28.9]} 44. Rd5
{[%clk 0:00:12.5]} 44... d3 {[%clk 0:00:27.2]} 45. Rxf5 {[%clk 0:00:11.4]} 45...
Rc1 {[%clk 0:00:23.8]} 46. Rd5 {[%clk 0:00:11.5]} 46... Rxc4+ {[%clk 0:00:23.4]}
47. Ke3 {[%clk 0:00:11.3]} 47... h5 {[%clk 0:00:20.5]} 48. Rxd3 {[%clk
0:00:11.1]} 48... Ra4 {[%clk 0:00:19.9]} 49. Rd4 {[%clk 0:00:11.3]} 49... Ra5
{[%clk 0:00:19]} 50. Re4 {[%clk 0:00:09.3]} 50... Rb5 {[%clk 0:00:18.9]} 51. Kf4
{[%clk 0:00:07.9]} 51... Rf5+ {[%clk 0:00:19]} 52. Ke3 {[%clk 0:00:08.5]} 52...
Rb5 {[%clk 0:00:19.5]} 53. Rc4 {[%clk 0:00:08.9]} 53... Ra5 {[%clk 0:00:19.8]}
54. Rc6 {[%clk 0:00:07.7]} 54... Rb5 {[%clk 0:00:20.1]} 55. f4 {[%clk 0:00:06]}
55... Kf5 {[%clk 0:00:18.2]} 56. Rc8 {[%clk 0:00:02.9]} 56... Rb3+ {[%clk
0:00:18.1]} 57. Kf2 {[%clk 0:00:03.2]} 57... Rb2+ {[%clk 0:00:12.9]} 58. Kf3
{[%clk 0:00:03]} 58... Rb3+ {[%clk 0:00:13.3]} 59. Kg2 {[%clk 0:00:03.5]} 59...
Ra3 {[%clk 0:00:10.4]} 60. Kh3 {[%clk 0:00:03.5]} 60... Rb3 {[%clk 0:00:09.9]}
61. Rc5+ {[%clk 0:00:02.6]} 61... Kg6 {[%clk 0:00:10.1]} 62. Rd5 {[%clk
0:00:03.5]} 62... Ra3 {[%clk 0:00:10.1]} 63. Rd2 {[%clk 0:00:03.6]} 63... Ra6
{[%clk 0:00:08.9]} 64. Rf2 {[%clk 0:00:04]} 64... f5 {[%clk 0:00:09.3]} 65. Rd2
{[%clk 0:00:03.8]} 65... Rb6 {[%clk 0:00:08.7]} 66. Rd3 {[%clk 0:00:04.3]} 66...
Ra6 {[%clk 0:00:09.1]} 67. Kg2 {[%clk 0:00:04.8]} 67... Re6 {[%clk 0:00:09.3]}
68. Kf3 {[%clk 0:00:05.1]} 68... Ra6 {[%clk 0:00:09.6]} 69. Ke3 {[%clk
0:00:05.2]} 69... Rb6 {[%clk 0:00:10]} 70. Kd4 {[%clk 0:00:05.7]} 70... Rd6+
{[%clk 0:00:09.6]} 71. Kc4 {[%clk 0:00:06.3]} 71... Ra6 {[%clk 0:00:09.6]} 72.
Kd5 {[%clk 0:00:06.8]} 72... Ra8 {[%clk 0:00:08.2]} 73. Ke5 {[%clk 0:00:04.6]}
73... Re8+ {[%clk 0:00:08.1]} 74. Kd4 {[%clk 0:00:05.3]} 74... Rd8+ {[%clk
0:00:08.5]} 75. Kc3 {[%clk 0:00:05.9]} 75... Rc8+ {[%clk 0:00:08.9]} 76. Kd2
{[%clk 0:00:06.5]} 76... Rc6 {[%clk 0:00:09.2]} 77. Rd4 {[%clk 0:00:06.9]} 77...
Ra6 {[%clk 0:00:09.5]} 78. Kd3 {[%clk 0:00:07.4]} 78... Ra3+ {[%clk 0:00:09.5]}
79. Ke2 {[%clk 0:00:07.3]} 79... Rxg3 {[%clk 0:00:10.4]} 80. Rd6+ {[%clk
0:00:07.2]} 80... Kg7 {[%clk 0:00:10.6]} 81. Rd5 {[%clk 0:00:07.4]} 81... Kg6
{[%clk 0:00:08.2]} 82. Rd6+ {[%clk 0:00:07.8]} 82... Kg7 {[%clk 0:00:08.6]} 83.
Kf2 {[%clk 0:00:07.2]} 83... Rg4 {[%clk 0:00:08.7]} 84. Kf3 {[%clk 0:00:07.6]}
84... Rxh4 {[%clk 0:00:08.7]} 85. Rd7+ {[%clk 0:00:08.2]} 85... Kg6 {[%clk
0:00:09]} 86. Rd6+ {[%clk 0:00:09.1]} 86... Kf7 {[%clk 0:00:09.4]} 87. Rd7+
{[%clk 0:00:09.4]} 87... Ke6 {[%clk 0:00:09.8]} 88. Rh7 {[%clk 0:00:10]} 88...
Rh3+ {[%clk 0:00:09.6]} 89. Kg2 {[%clk 0:00:10.3]} 89... Rh4 {[%clk 0:00:09.3]}
90. Kg3 {[%clk 0:00:09.8]} 90... Rg4+ {[%clk 0:00:09.6]} 91. Kf3 {[%clk
0:00:10.1]} 91... h4 {[%clk 0:00:10]} 92. Rh6+ {[%clk 0:00:10.7]} 92... Kd5
{[%clk 0:00:10.1]} 93. Rh5 {[%clk 0:00:11.3]} 93... Rg3+ {[%clk 0:00:09.8]} 94.
Kf2 {[%clk 0:00:10.6]} 94... Ke4 {[%clk 0:00:10.2]} 95. Rxh4 {[%clk 0:00:11.2]}
95... Rf3+ {[%clk 0:00:08.2]} 96. Ke2 {[%clk 0:00:10.4]} 96... Rxf4 {[%clk
0:00:07.5]} 97. Rxf4+ {[%clk 0:00:10.6]} 97... Kxf4 {[%clk 0:00:08.4]} 98. Kf2
{[%clk 0:00:11]} 98... Kg4 {[%clk 0:00:08.9]} 99. Kg2 {[%clk 0:00:11]} 99... f4
{[%clk 0:00:09.7]} 100. Kf2 {[%clk 0:00:10.8]} 100... f3 {[%clk 0:00:10.6]} 101.
Kf1 {[%clk 0:00:11]} 101... Kg3 {[%clk 0:00:11.5]} 102. Kg1 {[%clk 0:00:11.4]}
102... f2+ {[%clk 0:00:12.4]} 103. Kf1 {[%clk 0:00:11.9]} 103... Kf3 {[%clk
0:00:13.3]} 1/2-1/2

[Event "Late-Titled-Tuesday-Blitz-May-07-2024"]
[Site "Chess.com"]
[Date "2024.05.07"]
[Round "6"]
[White "ACollins05"]
[Black "nochewycandy"]
[Result "0-1"]
[WhiteElo "2533"]
[BlackElo "2782"]
[TimeControl "180+1"]
[EndTime "15:09:22 PDT"]
[Termination "nochewycandy won by checkmate"]

1. Nf3 {[%clk 0:03:00.9]} 1... d5 {[%clk 0:02:58]} 2. e3 {[%clk 0:03:00.8]} 2...
c5 {[%clk 0:02:51.7]} 3. b3 {[%clk 0:03:00.2]} 3... a6 {[%clk 0:02:51.2]} 4. Bb2
{[%clk 0:02:59.6]} 4... Nc6 {[%clk 0:02:51.5]} 5. d4 {[%clk 0:02:59.9]} 5... Bg4
{[%clk 0:02:48.1]} 6. Be2 {[%clk 0:02:58.4]} 6... Nf6 {[%clk 0:02:47.3]} 7. Nbd2
{[%clk 0:02:57.8]} 7... e6 {[%clk 0:02:47.4]} 8. O-O {[%clk 0:02:58]} 8... cxd4
{[%clk 0:02:46.4]} 9. Nxd4 {[%clk 0:02:57.3]} 9... Bxe2 {[%clk 0:02:46.1]} 10.
Qxe2 {[%clk 0:02:58.2]} 10... Rc8 {[%clk 0:02:45.7]} 11. c4 {[%clk 0:02:57.9]}
11... Bd6 {[%clk 0:02:40.4]} 12. Rac1 {[%clk 0:02:54.9]} 12... Nxd4 {[%clk
0:02:37.8]} 13. Bxd4 {[%clk 0:02:55.8]} 13... O-O {[%clk 0:02:34.2]} 14. cxd5
{[%clk 0:02:55]} 14... Nxd5 {[%clk 0:02:33.7]} 15. Ne4 {[%clk 0:02:52.4]} 15...
Rxc1 {[%clk 0:02:22.9]} 16. Rxc1 {[%clk 0:02:53.3]} 16... Ba3 {[%clk 0:02:23.2]}
17. Rd1 {[%clk 0:02:50.1]} 17... Qh4 {[%clk 0:02:18.2]} 18. Nc3 {[%clk
0:02:37.8]} 18... Ne7 {[%clk 0:01:58.7]} 19. Qf3 {[%clk 0:02:35.1]} 19... Nc6
{[%clk 0:01:58.4]} 20. Qe4 {[%clk 0:02:23.7]} 20... Qh5 {[%clk 0:01:53.6]} 21.
Qc2 {[%clk 0:02:04.9]} 21... Rc8 {[%clk 0:01:46.9]} 22. Qe2 {[%clk 0:02:02.5]}
22... Qg6 {[%clk 0:01:41]} 23. Bb6 {[%clk 0:01:58.5]} 23... Bb4 {[%clk
0:01:33.3]} 24. Na4 {[%clk 0:01:55.6]} 24... h5 {[%clk 0:01:28.2]} 25. Bc5
{[%clk 0:01:52.1]} 25... Ba5 {[%clk 0:01:20.1]} 26. Bb6 {[%clk 0:01:49.5]} 26...
Bb4 {[%clk 0:01:18.7]} 27. Bc5 {[%clk 0:01:48]} 27... b5 {[%clk 0:01:11.5]} 28.
Nb6 {[%clk 0:01:38.9]} 28... Rc7 {[%clk 0:01:09.2]} 29. Na8 {[%clk 0:01:09.3]}
29... Rb7 {[%clk 0:00:59.2]} 30. Bxb4 {[%clk 0:00:59.2]} 30... Nxb4 {[%clk
0:01:00.1]} 31. Qf3 {[%clk 0:00:55]} 31... Nd5 {[%clk 0:00:56]} 32. e4 {[%clk
0:00:54]} 32... Nf6 {[%clk 0:00:53.3]} 33. Rd8+ {[%clk 0:00:42.5]} 33... Kh7
{[%clk 0:00:53.3]} 34. e5 {[%clk 0:00:41.2]} 34... Qb1+ {[%clk 0:00:54.2]} 35.
Rd1 {[%clk 0:00:39.6]} 35... Qc2 {[%clk 0:00:29.2]} 36. exf6 {[%clk 0:00:37.7]}
36... g6 {[%clk 0:00:29.7]} 37. h4 {[%clk 0:00:32.4]} 37... Qc8 {[%clk
0:00:25.6]} 38. g3 {[%clk 0:00:22.2]} 38... Ra7 {[%clk 0:00:20.7]} 39. Nb6
{[%clk 0:00:20.6]} 39... Qc2 {[%clk 0:00:19]} 40. Rd7 {[%clk 0:00:12.9]} 40...
Rxd7 {[%clk 0:00:17.5]} 41. Nxd7 {[%clk 0:00:13.8]} 41... Qd2 {[%clk 0:00:14.3]}
42. Qb7 {[%clk 0:00:09.6]} 42... g5 {[%clk 0:00:09.3]} 43. hxg5 {[%clk
0:00:09.2]} 43... Qxg5 {[%clk 0:00:07]} 44. Nb6 {[%clk 0:00:08.2]} 44... Qxf6
{[%clk 0:00:06.9]} 45. Qxa6 {[%clk 0:00:07.7]} 45... h4 {[%clk 0:00:07.1]} 46.
Qxb5 {[%clk 0:00:05.1]} 46... h3 {[%clk 0:00:03.8]} 47. Qh5+ {[%clk 0:00:05.1]}
47... Kg7 {[%clk 0:00:03.8]} 48. Qxh3 {[%clk 0:00:04.6]} 48... Qa1+ {[%clk
0:00:04.1]} 49. Qf1 {[%clk 0:00:04.9]} 49... Qd4 {[%clk 0:00:05]} 50. Nc4 {[%clk
0:00:04.7]} 50... f5 {[%clk 0:00:05.2]} 51. Qe2 {[%clk 0:00:03.9]} 51... Kf7
{[%clk 0:00:04.4]} 52. a4 {[%clk 0:00:03.8]} 52... Qa1+ {[%clk 0:00:04]} 53. Kg2
{[%clk 0:00:03.5]} 53... Qb1 {[%clk 0:00:04.4]} 54. a5 {[%clk 0:00:03.7]} 54...
Qxb3 {[%clk 0:00:04.8]} 55. Ne3 {[%clk 0:00:02.6]} 55... Qa4 {[%clk 0:00:05.1]}
56. Qa6 {[%clk 0:00:01.9]} 56... Qe4+ {[%clk 0:00:05.1]} 57. Kh2 {[%clk
0:00:02]} 57... f4 {[%clk 0:00:04.3]} 58. Qa7+ {[%clk 0:00:02.3]} 58... Kg6
{[%clk 0:00:03.7]} 59. gxf4 {[%clk 0:00:03.2]} 59... Qxf4+ {[%clk 0:00:04.1]}
60. Kg2 {[%clk 0:00:03.8]} 60... Qe4+ {[%clk 0:00:04.6]} 61. Kf1 {[%clk
0:00:04.1]} 61... Qd3+ {[%clk 0:00:04.5]} 62. Ke1 {[%clk 0:00:04.8]} 62... Qc3+
{[%clk 0:00:05]} 63. Ke2 {[%clk 0:00:05.4]} 63... Qb2+ {[%clk 0:00:04.9]} 64.
Kd3 {[%clk 0:00:05.9]} 64... Qb1+ {[%clk 0:00:05.2]} 65. Kd4 {[%clk 0:00:06]}
65... Qb2+ {[%clk 0:00:05.6]} 66. Kc5 {[%clk 0:00:06.1]} 66... Qc3+ {[%clk
0:00:05.7]} 67. Kd6 {[%clk 0:00:06]} 67... Qd4+ {[%clk 0:00:04.9]} 68. Kxe6
{[%clk 0:00:06.1]} 68... Qxa7 {[%clk 0:00:05.8]} 69. Kd5 {[%clk 0:00:05.9]}
69... Qxa5+ {[%clk 0:00:05.9]} 70. Ke4 {[%clk 0:00:06.4]} 70... Qb4+ {[%clk
0:00:06.2]} 71. Kf3 {[%clk 0:00:06.4]} 71... Qb7+ {[%clk 0:00:06.1]} 72. Kf4
{[%clk 0:00:06.5]} 72... Kf6 {[%clk 0:00:06.3]} 73. Ng4+ {[%clk 0:00:06.3]}
73... Ke6 {[%clk 0:00:06.6]} 74. Ne3 {[%clk 0:00:06.8]} 74... Qb4+ {[%clk
0:00:06.7]} 75. Kf3 {[%clk 0:00:06.9]} 75... Qc3 {[%clk 0:00:07.1]} 76. Ke4
{[%clk 0:00:06.8]} 76... Qb4+ {[%clk 0:00:07.3]} 77. Kd3 {[%clk 0:00:06.6]}
77... Qa4 {[%clk 0:00:08.2]} 78. Nc4 {[%clk 0:00:05.6]} 78... Qb3+ {[%clk
0:00:07.7]} 79. Kd4 {[%clk 0:00:05.6]} 79... Qc2 {[%clk 0:00:07.6]} 80. f3
{[%clk 0:00:03.8]} 80... Qf2+ {[%clk 0:00:07.2]} 81. Ke4 {[%clk 0:00:03.8]}
81... Qe2+ {[%clk 0:00:06.8]} 82. Ne3 {[%clk 0:00:04.5]} 82... Kf6 {[%clk
0:00:07.2]} 83. Kf4 {[%clk 0:00:04.7]} 83... Qd2 {[%clk 0:00:07.3]} 84. Ke4
{[%clk 0:00:05.2]} 84... Kg5 {[%clk 0:00:07.8]} 85. Nd5 {[%clk 0:00:03.1]} 85...
Qe2+ {[%clk 0:00:07]} 86. Ne3 {[%clk 0:00:03.6]} 86... Kh4 {[%clk 0:00:06.6]}
87. Kf4 {[%clk 0:00:03.6]} 87... Qd2 {[%clk 0:00:06.2]} 88. Ke4 {[%clk
0:00:03.5]} 88... Kh3 {[%clk 0:00:06.3]} 89. Nf5 {[%clk 0:00:03.2]} 89... Qc2+
{[%clk 0:00:06.2]} 90. Kf4 {[%clk 0:00:03.3]} 90... Qc1+ {[%clk 0:00:05.7]} 91.
Ne3 {[%clk 0:00:03.4]} 91... Kh4 {[%clk 0:00:05]} 92. Ke4 {[%clk 0:00:03.4]}
92... Kg3 {[%clk 0:00:05.5]} 93. Nf5+ {[%clk 0:00:03.1]} 93... Kf2 {[%clk
0:00:05.7]} 94. Nd4 {[%clk 0:00:03]} 94... Qe3+ {[%clk 0:00:05.5]} 95. Kd5
{[%clk 0:00:03.3]} 95... Qd3 {[%clk 0:00:05.9]} 96. Ke5 {[%clk 0:00:03.6]} 96...
Ke3 {[%clk 0:00:05.9]} 97. Nf5+ {[%clk 0:00:02.8]} 97... Kxf3 {[%clk 0:00:06.3]}
98. Nd4+ {[%clk 0:00:03.2]} 98... Ke3 {[%clk 0:00:06.7]} 99. Nf5+ {[%clk
0:00:03.7]} 99... Kf2 {[%clk 0:00:06.9]} 100. Nd4 {[%clk 0:00:03.9]} 100... Qc4
{[%clk 0:00:07.3]} 101. Nf5 {[%clk 0:00:03.9]} 101... Kf3 {[%clk 0:00:06.4]}
102. Nd4+ {[%clk 0:00:04]} 102... Ke3 {[%clk 0:00:06.4]} 103. Nf5+ {[%clk
0:00:04.4]} 103... Kd3 {[%clk 0:00:07.1]} 104. Nd6 {[%clk 0:00:04.5]} 104...
Qd4+ {[%clk 0:00:07.2]} 105. Ke6 {[%clk 0:00:04.2]} 105... Qc5 {[%clk
0:00:07.3]} 106. Nf5 {[%clk 0:00:03.6]} 106... Ke4 {[%clk 0:00:07.3]} 107. Nd6+
{[%clk 0:00:04]} 107... Kf4 {[%clk 0:00:07.7]} 108. Nf7 {[%clk 0:00:04.1]}
108... Qf5+ {[%clk 0:00:07.4]} 109. Ke7 {[%clk 0:00:04.2]} 109... Qg6 {[%clk
0:00:07.4]} 110. Nd6 {[%clk 0:00:04.3]} 110... Ke5 {[%clk 0:00:07.5]} 111. Nf7+
{[%clk 0:00:04.5]} 111... Kd5 {[%clk 0:00:08]} 112. Kf8 {[%clk 0:00:03.2]}
112... Ke6 {[%clk 0:00:06.9]} 113. Nd8+ {[%clk 0:00:03.1]} 113... Kf6 {[%clk
0:00:07.4]} 114. Nc6 {[%clk 0:00:01.9]} 114... Qf7# {[%clk 0:00:06.6]} 0-1

[Event "Late-Titled-Tuesday-Blitz-May-07-2024"]
[Site "Chess.com"]
[Date "2024.05.07"]
[Round "7"]
[White "youngdinousaur"]
[Black "Sandstad"]
[Result "0-1"]
[WhiteElo "2307"]
[BlackElo "2434"]
[TimeControl "180+1"]
[EndTime "15:12:44 PDT"]
[Termination "Sandstad won by resignation"]

1. d4 {[%clk 0:03:00.9]} 1... d5 {[%clk 0:02:58.9]} 2. Nf3 {[%clk 0:03:00.8]}
2... Nf6 {[%clk 0:02:58.2]} 3. Bf4 {[%clk 0:03:01.1]} 3... c5 {[%clk 0:02:57.3]}
4. e3 {[%clk 0:03:01.6]} 4... Nc6 {[%clk 0:02:57.4]} 5. c3 {[%clk 0:03:00.9]}
5... Bg4 {[%clk 0:02:54]} 6. Qb3 {[%clk 0:03:00.1]} 6... Qc8 {[%clk 0:02:51]} 7.
Nbd2 {[%clk 0:02:53.4]} 7... e6 {[%clk 0:02:49.7]} 8. Ne5 {[%clk 0:02:51.3]}
8... Nxe5 {[%clk 0:02:43.7]} 9. Bxe5 {[%clk 0:02:51]} 9... a6 {[%clk 0:02:39.4]}
10. h3 {[%clk 0:02:46.5]} 10... Bh5 {[%clk 0:02:36.5]} 11. g4 {[%clk 0:02:39.3]}
11... Bg6 {[%clk 0:02:35.9]} 12. Bg2 {[%clk 0:02:39.9]} 12... Nd7 {[%clk
0:02:34.8]} 13. Bg3 {[%clk 0:02:38.8]} 13... Be7 {[%clk 0:02:34]} 14. O-O {[%clk
0:02:37.7]} 14... O-O {[%clk 0:02:32.6]} 15. c4 {[%clk 0:02:35.7]} 15... cxd4
{[%clk 0:02:29.3]} 16. cxd5 {[%clk 0:02:32.2]} 16... dxe3 {[%clk 0:02:28.8]} 17.
dxe6 {[%clk 0:02:17.9]} 17... exd2 {[%clk 0:02:13.7]} 18. Bxb7 {[%clk
0:02:01.5]} 18... Nc5 {[%clk 0:02:12.7]} 0-1

[Event "Late-Titled-Tuesday-Blitz-May-07-2024"]
[Site "Chess.com"]
[Date "2024.05.07"]
[Round "7"]
[White "Akhayan"]
[Black "1800_strength"]
[Result "1-0"]
[WhiteElo "2432"]
[BlackElo "2751"]
[TimeControl "180+1"]
[EndTime "15:13:03 PDT"]
[Termination "Akhayan won by resignation"]

1. e4 {[%clk 0:03:00.9]} 1... a5 {[%clk 0:02:54.9]} 2. d4 {[%clk 0:03:00.2]}
2... Ra6 {[%clk 0:02:55.8]} 3. Bxa6 {[%clk 0:02:59.2]} 3... Nxa6 {[%clk
0:02:56.7]} 4. Nc3 {[%clk 0:02:57.4]} 4... b6 {[%clk 0:02:57.6]} 5. Nf3 {[%clk
0:02:55.7]} 5... Bb7 {[%clk 0:02:58.5]} 6. O-O {[%clk 0:02:55.3]} 6... g6 {[%clk
0:02:59.1]} 7. Be3 {[%clk 0:02:43.1]} 7... Bg7 {[%clk 0:02:59.1]} 8. a3 {[%clk
0:02:41.9]} 8... e6 {[%clk 0:02:58.4]} 9. d5 {[%clk 0:02:39.3]} 9... Ne7 {[%clk
0:02:58.5]} 10. d6 {[%clk 0:02:37.1]} 10... cxd6 {[%clk 0:02:58.5]} 11. Qxd6
{[%clk 0:02:36.1]} 11... Nc8 {[%clk 0:02:56.7]} 12. Qd2 {[%clk 0:02:32.5]} 12...
O-O {[%clk 0:02:57]} 13. Rad1 {[%clk 0:02:31.6]} 13... Re8 {[%clk 0:02:56]} 14.
Qxd7 {[%clk 0:02:28.2]} 14... Qxd7 {[%clk 0:02:53.7]} 15. Rxd7 {[%clk
0:02:26.7]} 15... Bc6 {[%clk 0:02:54.6]} 16. Rd2 {[%clk 0:02:22]} 16... Bxc3
{[%clk 0:02:54]} 17. bxc3 {[%clk 0:02:21.5]} 17... Bxe4 {[%clk 0:02:54.9]} 18.
Rfd1 {[%clk 0:02:08.7]} 18... f6 {[%clk 0:02:54.1]} 19. Rd8 {[%clk 0:02:07.1]}
19... Kf7 {[%clk 0:02:54.4]} 20. R1d7+ {[%clk 0:02:01.4]} 20... Ne7 {[%clk
0:02:53.8]} 21. Bxb6 {[%clk 0:01:30.7]} 21... Bxc2 {[%clk 0:02:33.3]} 22. Nd4
{[%clk 0:01:21.6]} 22... Ba4 {[%clk 0:02:32.4]} 23. Rxe8 {[%clk 0:01:17.8]}
23... Bxd7 {[%clk 0:02:29.7]} 24. Ra8 {[%clk 0:01:13.4]} 24... e5 {[%clk
0:02:30.1]} 25. Rxa6 {[%clk 0:01:10.1]} 25... exd4 {[%clk 0:02:30.1]} 26. Bxd4
{[%clk 0:01:10.1]} 1-0

[Event "Late-Titled-Tuesday-Blitz-May-07-2024"]
[Site "Chess.com"]
[Date "2024.05.07"]
[Round "7"]
[White "maurovargas01"]
[Black "FMalexhdez"]
[Result "0-1"]
[WhiteElo "1959"]
[BlackElo "2215"]
[TimeControl "180+1"]
[EndTime "15:13:51 PDT"]
[Termination "FMalexhdez won by checkmate"]

1. e4 {[%clk 0:02:42]} 1... c5 {[%clk 0:02:55.6]} 2. Nc3 {[%clk 0:02:41.5]} 2...
d6 {[%clk 0:02:47.9]} 3. f4 {[%clk 0:02:42.4]} 3... e5 {[%clk 0:02:45.3]} 4. d3
{[%clk 0:02:41.6]} 4... Nc6 {[%clk 0:02:40.8]} 5. Nf3 {[%clk 0:02:40.4]} 5...
Be7 {[%clk 0:02:40.7]} 6. g3 {[%clk 0:02:37.5]} 6... Nf6 {[%clk 0:02:38.6]} 7.
Bg2 {[%clk 0:02:36.4]} 7... Nd4 {[%clk 0:02:36.8]} 8. Nd5 {[%clk 0:02:27.9]}
8... Nxd5 {[%clk 0:02:35.1]} 9. exd5 {[%clk 0:02:27.9]} 9... O-O {[%clk
0:02:21.3]} 10. fxe5 {[%clk 0:02:27.7]} 10... dxe5 {[%clk 0:02:20.7]} 11. Nxe5
{[%clk 0:02:27.7]} 11... Bf6 {[%clk 0:02:11.8]} 12. Nc4 {[%clk 0:02:20.5]} 12...
Re8+ {[%clk 0:02:11.5]} 13. Kf1 {[%clk 0:02:15]} 13... Bg4 {[%clk 0:02:10.3]}
14. Qxg4 {[%clk 0:02:01]} 14... Nxc2 {[%clk 0:02:05.7]} 15. Rb1 {[%clk
0:01:56.7]} 15... Re1+ {[%clk 0:02:00.7]} 16. Kf2 {[%clk 0:01:55.7]} 16... Qe7
{[%clk 0:01:57.9]} 17. Bf3 {[%clk 0:01:44.8]} 17... Rxh1 {[%clk 0:01:51.5]} 18.
Bxh1 {[%clk 0:01:43.7]} 18... Qe1+ {[%clk 0:01:45.4]} 19. Kg2 {[%clk 0:01:41.4]}
19... Re8 {[%clk 0:01:42.3]} 20. Kh3 {[%clk 0:01:40.6]} 20... Qxh1 {[%clk
0:01:40.1]} 21. Be3 {[%clk 0:01:30.4]} 21... Qxb1 {[%clk 0:01:38.2]} 22. Bf4
{[%clk 0:01:11.7]} 22... Qf1# {[%clk 0:01:35.5]} 0-1

[Event "Late-Titled-Tuesday-Blitz-May-07-2024"]
[Site "Chess.com"]
[Date "2024.05.07"]
[Round "7"]
[White "Yaacovn"]
[Black "Thjop"]
[Result "1-0"]
[WhiteElo "2841"]
[BlackElo "2607"]
[TimeControl "180+1"]
[EndTime "15:13:54 PDT"]
[Termination "Yaacovn won by resignation"]

1. d4 {[%clk 0:03:00.9]} 1... Nf6 {[%clk 0:02:59.8]} 2. e3 {[%clk 0:03:01]} 2...
g6 {[%clk 0:02:59.9]} 3. Nf3 {[%clk 0:03:01.4]} 3... Bg7 {[%clk 0:03:00.3]} 4.
Be2 {[%clk 0:03:02]} 4... O-O {[%clk 0:03:01]} 5. O-O {[%clk 0:03:02.9]} 5... d6
{[%clk 0:03:01.6]} 6. b3 {[%clk 0:03:03.5]} 6... e5 {[%clk 0:03:01.3]} 7. dxe5
{[%clk 0:03:03.5]} 7... dxe5 {[%clk 0:03:01.6]} 8. Ba3 {[%clk 0:03:03.9]} 8...
Qxd1 {[%clk 0:03:00.4]} 9. Rxd1 {[%clk 0:03:03.9]} 9... Re8 {[%clk 0:03:00.9]}
10. Nc3 {[%clk 0:03:04.5]} 10... a6 {[%clk 0:03:00]} 11. Ng5 {[%clk 0:03:04.6]}
11... e4 {[%clk 0:02:54.8]} 12. Bc4 {[%clk 0:03:04.6]} 12... Be6 {[%clk
0:02:48.5]} 13. Bxe6 {[%clk 0:03:03.2]} 13... fxe6 {[%clk 0:02:49.4]} 14. Rab1
{[%clk 0:03:02.2]} 14... Nc6 {[%clk 0:02:39.9]} 15. Ncxe4 {[%clk 0:03:00.5]}
15... Nxe4 {[%clk 0:02:37.5]} 16. Nxe4 {[%clk 0:03:00.5]} 16... b6 {[%clk
0:02:37.5]} 17. c4 {[%clk 0:02:59.3]} 17... Rad8 {[%clk 0:02:36.7]} 18. Kf1
{[%clk 0:02:59.3]} 18... Be5 {[%clk 0:02:32.3]} 19. Ke2 {[%clk 0:02:56.5]} 19...
Rxd1 {[%clk 0:02:31.9]} 20. Rxd1 {[%clk 0:02:56.4]} 20... Rd8 {[%clk 0:02:32.8]}
21. Rxd8+ {[%clk 0:02:56.6]} 21... Nxd8 {[%clk 0:02:33.7]} 22. f4 {[%clk
0:02:56.9]} 22... Bg7 {[%clk 0:02:33.2]} 23. g4 {[%clk 0:02:56]} 23... h6 {[%clk
0:02:32.8]} 24. h4 {[%clk 0:02:56]} 24... Kf7 {[%clk 0:02:33.2]} 25. h5 {[%clk
0:02:55.6]} 25... gxh5 {[%clk 0:02:32.7]} 26. gxh5 {[%clk 0:02:56.3]} 26... Nc6
{[%clk 0:02:27.8]} 27. Kf3 {[%clk 0:02:55.7]} 27... Bh8 {[%clk 0:02:20.9]} 28.
Nf2 {[%clk 0:02:55.2]} 28... Bg7 {[%clk 0:02:20]} 29. Ng4 {[%clk 0:02:55.4]}
29... Nb8 {[%clk 0:02:12.5]} 30. Bb4 {[%clk 0:02:46.7]} 30... Nd7 {[%clk
0:02:10.8]} 31. e4 {[%clk 0:02:44]} 31... a5 {[%clk 0:02:07.4]} 32. Ba3 {[%clk
0:02:41.4]} 32... Nb8 {[%clk 0:02:07.5]} 33. e5 {[%clk 0:02:40.9]} 33... Nc6
{[%clk 0:02:06.9]} 34. Ke4 {[%clk 0:02:41.5]} 34... Nb8 {[%clk 0:01:59.7]} 35.
Bb2 {[%clk 0:02:38.9]} 35... Nc6 {[%clk 0:01:59.3]} 36. Bc3 {[%clk 0:02:39.3]}
36... Ne7 {[%clk 0:01:58]} 37. Ne3 {[%clk 0:02:36.8]} 37... Bf8 {[%clk
0:01:55.2]} 38. f5 {[%clk 0:02:36.4]} 38... exf5+ {[%clk 0:01:54]} 39. Nxf5
{[%clk 0:02:37.3]} 39... Ke6 {[%clk 0:01:44.9]} 40. Nd4+ {[%clk 0:02:37.1]}
40... Kf7 {[%clk 0:01:39.4]} 41. Bd2 {[%clk 0:02:27.4]} 41... Ng8 {[%clk
0:01:31.9]} 42. Nf5 {[%clk 0:02:21]} 42... Ke6 {[%clk 0:01:30.2]} 43. Be3 {[%clk
0:02:18.7]} 43... c5 {[%clk 0:01:28.8]} 44. Bd2 {[%clk 0:02:14.2]} 44... Ne7
{[%clk 0:01:17.3]} 45. Nxe7 {[%clk 0:02:10.6]} 1-0